fUST/lending_fUST_20240610
["ID","MTS","AMOUNT","RATE_DAILY","PERIOD"]
[328894451,1717966247641,-151.0,0.0002233,2]
[328894453,1717966247652,-151.0,0.0002233,2]
[328894454,1717966247662,-151.0,0.0002233,2]
[328894455,1717966247673,-2362.611661,0.0002233,2]
[328894457,1717966247684,-2362.611661,0.0002233,2]
[328894459,1717966247695,-151.0,0.0002233,2]
[328894460,1717966247705,-1283.339629,0.0002233,2]
[328894461,1717966247716,-1283.339629,0.0002233,2]
[328894462,1717966247726,-203.442403,0.0002233,2]
[328894464,1717966247737,-203.442403,0.0002233,2]
[328894466,1717966247752,-151.0,0.0002233,2]
[328894468,1717966247763,-151.0,0.0002233,2]
[328894470,1717966247774,-151.0,0.0002233,2]
[328894471,1717966247785,-3869.440557,0.0002233,2]
[328894473,1717966247796,-3869.440557,0.0002233,2]
[328894474,1717966247806,-583.726456,0.0002233,2]
[328894475,1717966247817,-583.726456,0.0002233,2]
[328894476,1717966247827,-151.0,0.0002233,2]
[328894477,1717966247838,-166.666666,0.00022431,2]
[328894478,1717966247849,-500.0,0.00022465,3]
[328894479,1717966247860,-500.0,0.00022465,3]
[328894480,1717966247871,-1336.34,0.00022465,3]
[328894481,1717966247884,-500.0,0.00022465,3]
[328894482,1717966247895,-167.50912367,0.00022465,3]
[328894483,1717966247906,-176.68,0.00022465,2]
[328894484,1717966247917,-517.0,0.00022466,2]
[328894485,1717966247929,-500.0,0.00022739,3]
[328894486,1717966247940,-500.0,0.00022739,3]
[328894487,1717966247951,-1336.34,0.00022739,3]
[328894488,1717966247962,-298.47657735,0.00022739,3]
[328894489,1717966247973,-517.0,0.0002274,2]
[328894490,1717966247983,-166.666666,0.00022944,2]
[328894491,1717966247995,-155.01395126,0.00023,2]
[328894492,1717966248005,-207.11489985,0.00023,2]
[328894493,1717966248016,-155.01395126,0.00023,2]
[328894494,1717966248027,-181.21073898,0.00023,2]
[328894495,1717966248039,-500.0,0.00023013,3]
[328894496,1717966248050,-179.26755757,0.00023013,3]
[328894497,1717966248061,-1336.34,0.00023013,3]
[328894498,1717966248073,-517.0,0.00023014,2]
[328894499,1717966248084,-517.0,0.00023014,2]
[328894500,1717966248096,-500.0,0.00023287,3]
[328894501,1717966248107,-1336.34,0.00023287,3]
[328894502,1717966248118,-517.0,0.00023288,2]
[328894504,1717966248129,-166.666666,0.00023456,2]
[328894505,1717966248140,-500.0,0.00023561,3]
[328894506,1717966248151,-1336.34,0.00023561,3]
[328894507,1717966248162,-500.0,0.00023835,3]
[328894508,1717966248174,-1336.34,0.00023835,3]
[328894509,1717966248185,-369.25087691,0.000239,2]
[328894510,1717966248197,-517.0,0.00023934,2]
[328894511,1717966248208,-166.666666,0.00023969,2]
[328894512,1717966248218,-285.0,0.00024,2]
[328894513,1717966248230,-500.0,0.00024109,3]
[328894514,1717966248240,-1336.34,0.00024109,3]
[328894515,1717966248252,-533.0,0.00024164,2]
[328894516,1717966248262,-501.03332889,0.00024383,3]
[328894517,1717966248273,-1336.34,0.00024383,3]
[328894518,1717966248283,-166.666666,0.00024482,2]
[328894519,1717966248294,-421.5594823,0.00024592,2]
[328894520,1717966248305,-421.5594823,0.00024614,2]
[328894521,1717966248316,-1336.34,0.00024657,3]
[328894522,1717966248326,-380.0,0.00024658,2]
[328894523,1717966248336,-451.76345902,0.00024658,2]
[328894524,1717966248347,-425.39050229,0.00024658,2]
[328894525,1717966248357,-5600.0,0.000247,9]
[328894526,1717966248368,-517.0,0.00024855,2]
[328894527,1717966248379,-517.0,0.00024855,2]
[328894528,1717966248393,-64343.07117631,0.000249,2]
[328894529,1717966248404,-151.0,0.000249,2]
[328894530,1717966248417,-2728.766432,0.000249,2]
[328894531,1717966248428,-2728.766432,0.000249,2]
[328894532,1717966248441,-151.0,0.000249,2]
[328894533,1717966248452,-151.0,0.000249,2]
[328894534,1717966248465,-151.0,0.000249,2]
[328894535,1717966248475,-151.0,0.000249,2]
[328894536,1717966248486,-151.0,0.000249,2]
[328894537,1717966248498,-2362.611661,0.000249,2]
[328894538,1717966248509,-2362.611661,0.000249,2]
[328894539,1717966248519,-151.0,0.000249,2]
[328894540,1717966248529,-1283.339629,0.000249,2]
[328894541,1717966248541,-1283.339629,0.000249,2]
[328894542,1717966248552,-203.442403,0.000249,2]
[328894543,1717966248565,-203.442403,0.000249,2]
[328894544,1717966248576,-151.0,0.000249,2]
[328894545,1717966248587,-151.0,0.000249,2]
[328894546,1717966248599,-151.0,0.000249,2]
[328894547,1717966248609,-3869.440557,0.000249,2]
[328894548,1717966248619,-3869.440557,0.000249,2]
[328894549,1717966248632,-583.726456,0.000249,2]
[328894550,1717966248643,-583.726456,0.000249,2]
[328894551,1717966248654,-151.0,0.000249,2]
[328894552,1717966248666,-1336.34,0.00024931,3]
[328894553,1717966248678,-1388.9519172,0.00025,2]
[328894554,1717966248691,-29998.999999,0.00025,10]
[328894555,1717966248702,-926.602132,0.00025,2]
[328894556,1717966248713,-926.602132,0.00025,2]
[328894557,1717966248725,-151.0,0.00025,2]
[328894558,1717966248830,-151.0,0.00025,2]
[328894559,1717966248843,-151.0,0.00025,2]
[328894560,1717966248854,-444.596682,0.00025,2]
[328894561,1717966248864,-444.596682,0.00025,2]
[328894562,1717966248877,-173.201211,0.00025,2]
[328894563,1717966248888,-173.201211,0.00025,2]
[328894564,1717966248898,-365.705848,0.00025,2]
[328894565,1717966248908,-365.705848,0.00025,2]
[328894566,1717966248919,-151.0,0.00025,2]
[328894567,1717966248930,-478.07174624,0.00025073,2]
[328894568,1717966248940,-478.07174624,0.00025141,2]
[328894569,1717966248951,-1336.34,0.00025205,3]
[328894570,1717966248964,-478.07174624,0.0002521,2]
[328894571,1717966248975,-478.07174624,0.0002523,2]
[328894572,1717966248988,-478.07174624,0.00025274,2]
[328894573,1717966249001,-421.5594823,0.00025283,2]
[328894574,1717966249012,-421.5594823,0.00025284,2]
[328894575,1717966249024,-421.5594823,0.00025354,2]
[328894576,1717966249035,-421.5594823,0.00025362,2]
[328894577,1717966249046,-421.5594823,0.00025461,2]
[328894578,1717966249057,-421.5594823,0.00025463,2]
[328894579,1717966249068,-1336.34,0.00025479,3]
[328894580,1717966249079,-478.07174624,0.00025522,2]
[328894581,1717966249090,-517.0,0.00025545,2]
[328894582,1717966249102,-156.95036896,0.00025622,2]
[328894583,1717966249114,-421.5594823,0.00025688,2]
[328894584,1717966249127,-157.0,0.000257,2]
[328894585,1717966249138,-421.5594823,0.00025739,2]
[328894586,1717966249151,-1336.34,0.00025753,3]
[328894587,1717966249163,-478.07174624,0.00025757,2]
[328894588,1717966249176,-156.95036896,0.00025771,2]
[328894589,1717966249187,-517.0,0.00025775,2]
[328894590,1717966249198,-478.07174624,0.00025791,2]
[328894591,1717966249209,-478.07174624,0.00025823,2]
[328894592,1717966249220,-421.5594823,0.00025839,2]
[328894593,1717966249231,-478.07174624,0.00025935,2]
[328894594,1717966249243,-1026.09951376,0.00026,4]
[328894595,1717966249256,-478.07174624,0.00026027,2]
[328894596,1717966249267,-1336.34,0.00026027,3]
[328894597,1717966249278,-151.78907289,0.00026035,2]
[328894598,1717966249290,-478.07174624,0.00026106,2]
[328894599,1717966249303,-292.4233824,0.00026137,2]
[328894600,1717966249315,-306.0,0.00026137,2]
[328894601,1717966249326,-306.0,0.00026137,2]
[328894602,1717966249338,-205.268679,0.00026137,2]
[328894603,1717966249350,-292.4233824,0.00026137,2]
[328894604,1717966249362,-205.268679,0.00026137,2]
[328894605,1717966249373,-291.7017857,0.00026137,2]
[328894606,1717966249386,-205.268679,0.00026137,2]
[328894607,1717966249399,-205.268679,0.00026137,2]
[328894608,1717966249412,-205.268679,0.00026137,2]
[328894609,1717966249425,-203.5101156,0.00026137,2]
[328894610,1717966249437,-517.0,0.00026236,2]
[328894611,1717966249449,-1336.34,0.00026301,3]
[328894612,1717966249462,-421.5594823,0.00026353,2]
[328894613,1717966249472,-151.0,0.00026375,2]
[328894614,1717966249483,-151.0,0.00026375,2]
[328894615,1717966249495,-151.0,0.00026375,2]
[328894616,1717966249505,-151.0,0.00026375,2]
[328894617,1717966249515,-151.0,0.00026375,2]
[328894618,1717966249526,-151.0,0.00026375,2]
[328894619,1717966249536,-151.0,0.00026375,2]
[328894620,1717966249547,-151.0,0.00026375,2]
[328894621,1717966249558,-498.347184,0.00026375,2]
[328894622,1717966249568,-498.347184,0.00026375,2]
[328894623,1717966249578,-151.0,0.00026375,2]
[328894624,1717966249589,-274.392147,0.00026375,2]
[328894625,1717966249599,-274.392147,0.00026375,2]
[328894626,1717966249610,-217.358334,0.00026388,2]
[328894627,1717966249621,-826.71,0.000264,3]
[328894628,1717966249631,-826.71,0.000264,3]
[328894629,1717966249642,-826.71,0.000264,3]
[328894630,1717966249652,-826.71,0.000264,3]
[328894631,1717966249662,-826.71,0.000264,3]
[328894632,1717966249673,-826.71,0.000264,3]
[328894633,1717966249683,-826.71,0.000264,3]
[328894634,1717966249694,-826.71,0.000264,3]
[328894635,1717966249704,-826.71,0.000264,3]
[328894636,1717966249715,-826.71,0.000264,3]
[328894637,1717966249725,-826.71,0.000264,3]
[328894638,1717966249735,-826.71,0.000264,3]
[328894639,1717966249747,-826.71,0.000264,3]
[328894640,1717966249757,-826.71,0.000264,3]
[328894641,1717966249768,-826.71,0.000264,3]
[328894642,1717966249778,-826.71,0.000264,3]
[328894643,1717966249790,-826.71,0.000264,3]
[328894644,1717966249802,-826.71,0.000264,3]
[328894645,1717966249813,-826.71,0.000264,3]
[328894646,1717966249825,-826.71,0.000264,3]
[328894647,1717966249837,-421.5594823,0.00026481,2]
[328894648,1717966249847,-151.0,0.000265,2]
[328894649,1717966249859,-826.71,0.000265,3]
[328894650,1717966249870,-826.71,0.000265,3]
[328894651,1717966249880,-826.71,0.000265,3]
[328894652,1717966249891,-826.71,0.000265,3]
[328894653,1717966249902,-826.71,0.000265,3]
[328894654,1717966249913,-826.71,0.000265,3]
[328894655,1717966249926,-826.71,0.000265,3]
[328894656,1717966249937,-826.71,0.000265,3]
[328894657,1717966249950,-826.71,0.000265,3]
[328894658,1717966249960,-826.71,0.000265,3]
[328894659,1717966249972,-826.71,0.000265,3]
[328894660,1717966249982,-826.71,0.000265,3]
[328894661,1717966249993,-826.71,0.000265,3]
[328894662,1717966250003,-826.71,0.000265,3]
[328894663,1717966250014,-826.71,0.000265,3]
[328894664,1717966250024,-826.71,0.000265,3]
[328894665,1717966250035,-826.71,0.000265,3]
[328894666,1717966250047,-826.71,0.000265,3]
[328894667,1717966250057,-826.71,0.000265,3]
[328894668,1717966250069,-826.71,0.000265,3]
[328894669,1717966250080,-826.71,0.000265,3]
[328894670,1717966250092,-826.71,0.000265,3]
[328894671,1717966250103,-826.71,0.000265,3]
[328894672,1717966250115,-826.71,0.000265,3]
[328894673,1717966250127,-826.71,0.000265,3]
[328894674,1717966250140,-826.71,0.000265,3]
[328894675,1717966250153,-826.71,0.000265,3]
[328894676,1717966250164,-826.71,0.000265,3]
[328894677,1717966250175,-826.71,0.000265,3]
[328894678,1717966250188,-826.71,0.000265,3]
[328894679,1717966250201,-826.71,0.000265,3]
[328894680,1717966250213,-826.71,0.000265,3]
[328894681,1717966250225,-826.71,0.000265,3]
[328894682,1717966250236,-826.71,0.000265,3]
[328894683,1717966250251,-826.71,0.000265,3]
[328894684,1717966250262,-826.71,0.000265,3]
[328894685,1717966250274,-826.71,0.000265,3]
[328894686,1717966250285,-826.71,0.000265,3]
[328894687,1717966250297,-826.71,0.000265,3]
[328894688,1717966250310,-826.71,0.000265,3]
[328894689,1717966250321,-3000.0,0.000265,2]
[328894690,1717966250332,-926.602132,0.000265,2]
[328894691,1717966250342,-926.602132,0.000265,2]
[328894692,1717966250353,-151.0,0.000265,2]
[328894693,1717966250364,-151.0,0.000265,2]
[328894694,1717966250375,-151.0,0.000265,2]
[328894695,1717966250385,-444.596682,0.000265,2]
[328894696,1717966250400,-444.596682,0.000265,2]
[328894697,1717966250410,-173.201211,0.000265,2]
[328894698,1717966250420,-173.201211,0.000265,2]
[328894699,1717966250430,-365.705848,0.000265,2]
[328894700,1717966250442,-365.705848,0.000265,2]
[328894701,1717966250452,-151.0,0.000265,2]
[328894702,1717966250463,-180.0,0.000265,2]
[328894703,1717966250474,-2728.766432,0.000265,2]
[328894704,1717966250484,-2728.766432,0.000265,2]
[328894705,1717966250495,-151.0,0.000265,2]
[328894706,1717966250505,-151.0,0.000265,2]
[328894707,1717966250516,-151.0,0.000265,2]
[328894708,1717966250526,-152.174664,0.000265,2]
[328894709,1717966250537,-151.0,0.000265,2]
[328894710,1717966250548,-2362.611661,0.000265,2]
[328894711,1717966250558,-2362.611661,0.000265,2]
[328894712,1717966250569,-1283.339629,0.000265,2]
[328894713,1717966250579,-1283.339629,0.000265,2]
[328894714,1717966250590,-203.442403,0.000265,2]
[328894715,1717966250600,-203.442403,0.000265,2]
[328894716,1717966250611,-151.0,0.000265,2]
[328894717,1717966250621,-151.0,0.000265,2]
[328894718,1717966250632,-151.0,0.000265,2]
[328894719,1717966250643,-3869.440557,0.000265,2]
[328894720,1717966250653,-3869.440557,0.000265,2]
[328894721,1717966250664,-583.726456,0.000265,2]
[328894722,1717966250674,-583.726456,0.000265,2]
[328894723,1717966250684,-151.0,0.000265,2]
[328894724,1717966250694,-3000.0,0.0002651,2]
[328894725,1717966250705,-3000.0,0.0002652,2]
[328894726,1717966250715,-3000.0,0.0002653,2]
[328894727,1717966250726,-478.07174624,0.00026538,2]
[328894728,1717966250736,-3000.0,0.0002654,2]
[328894729,1717966250747,-3000.0,0.0002655,2]
[328894730,1717966250757,-3000.0,0.0002656,2]
[328894731,1717966250766,-3000.0,0.0002657,2]
[328894732,1717966250777,-1756.20965926,0.00026575,2]
[328894733,1717966250789,-1053.66221551,0.00026575,2]
[328894734,1717966250799,-155.01395126,0.00026575,2]
[328894735,1717966250811,-1336.34,0.00026575,3]
[328894736,1717966250823,-3000.0,0.0002658,2]
[328894737,1717966250834,-3000.0,0.0002659,2]
[328894738,1717966250845,-158.75533805,0.00026599,2]
[328894739,1717966250857,-208.681369,0.000266,2]
[328894740,1717966250870,-151.0,0.000266,2]
[328894741,1717966250881,-151.0,0.000266,2]
[328894742,1717966250893,-177.021527,0.000266,2]
[328894743,1717966250903,-151.0,0.000266,2]
[328894744,1717966250914,-826.71,0.000266,3]
[328894745,1717966250925,-826.71,0.000266,3]
[328894746,1717966250936,-826.71,0.000266,3]
[328894747,1717966250947,-826.71,0.000266,3]
[328894748,1717966250958,-826.71,0.000266,3]
[328894749,1717966250969,-826.71,0.000266,3]
[328894750,1717966250980,-826.71,0.000266,3]
[328894751,1717966250991,-826.71,0.000266,3]
[328894752,1717966251003,-826.71,0.000266,3]
[328894753,1717966251013,-826.71,0.000266,3]
[328894754,1717966251025,-826.71,0.000266,3]
[328894755,1717966251036,-826.71,0.000266,3]
[328894756,1717966251048,-826.71,0.000266,3]
[328894757,1717966251059,-826.71,0.000266,3]
[328894758,1717966251070,-826.71,0.000266,3]
[328894759,1717966251083,-826.71,0.000266,3]
[328894760,1717966251094,-826.71,0.000266,3]
[328894761,1717966251106,-826.71,0.000266,3]
[328894762,1717966251117,-826.71,0.000266,3]
[328894763,1717966251130,-826.71,0.000266,3]
[328894764,1717966251143,-826.71,0.000266,3]
[328894765,1717966251154,-826.71,0.000266,3]
[328894766,1717966251166,-826.71,0.000266,3]
[328894767,1717966251177,-826.71,0.000266,3]
[328894768,1717966251189,-826.71,0.000266,3]
[328894769,1717966251200,-826.71,0.000266,3]
[328894770,1717966251214,-826.71,0.000266,3]
[328894771,1717966251225,-826.71,0.000266,3]
[328894772,1717966251237,-826.71,0.000266,3]
[328894773,1717966251248,-826.71,0.000266,3]
[328894774,1717966251260,-826.71,0.000266,3]
[328894775,1717966251271,-826.71,0.000266,3]
[328894776,1717966251282,-826.71,0.000266,3]
[328894777,1717966251292,-826.71,0.000266,3]
[328894778,1717966251303,-826.71,0.000266,3]
[328894779,1717966251314,-826.71,0.000266,3]
[328894780,1717966251325,-826.71,0.000266,3]
[328894781,1717966251335,-826.71,0.000266,3]
[328894782,1717966251346,-826.71,0.000266,3]
[328894783,1717966251356,-826.71,0.000266,3]
[328894784,1717966251368,-151.0,0.000266,2]
[328894785,1717966251380,-227.694162,0.000266,2]
[328894786,1717966251390,-151.0,0.000266,2]
[328894787,1717966251404,-151.0,0.000266,2]
[328894788,1717966251414,-151.0,0.000266,2]
[328894789,1717966251424,-151.0,0.000266,2]
[328894790,1717966251435,-3000.0,0.000266,2]
[328894791,1717966251446,-498.347184,0.000266,2]
[328894792,1717966251457,-498.347184,0.000266,2]
[328894793,1717966251468,-151.0,0.000266,2]
[328894794,1717966251483,-274.392147,0.000266,2]
[328894795,1717966251496,-274.392147,0.000266,2]
[328894796,1717966251507,-2728.766432,0.000266,2]
[328894797,1717966251517,-2728.766432,0.000266,2]
[328894798,1717966251528,-151.0,0.000266,2]
[328894799,1717966251539,-151.0,0.000266,2]
[328894800,1717966251551,-151.0,0.000266,2]
[328894801,1717966251562,-184.221496,0.000266,2]
[328894802,1717966251573,-2362.611661,0.000266,2]
[328894803,1717966251584,-2362.611661,0.000266,2]
[328894804,1717966251681,-1283.339629,0.000266,2]
[328894805,1717966251692,-1283.339629,0.000266,2]
[328894806,1717966251703,-203.442403,0.000266,2]
[328894807,1717966251714,-203.442403,0.000266,2]
[328894808,1717966251725,-151.0,0.000266,2]
[328894809,1717966251736,-151.0,0.000266,2]
[328894810,1717966251746,-151.0,0.000266,2]
[328894811,1717966251758,-3869.440557,0.000266,2]
[328894812,1717966251769,-3869.440557,0.000266,2]
[328894813,1717966251780,-583.726456,0.000266,2]
[328894814,1717966251791,-583.726456,0.000266,2]
[328894815,1717966251801,-179.764808,0.000266,2]
[328894816,1717966251812,-421.5594823,0.00026607,2]
[328894817,1717966251823,-3000.0,0.0002661,2]
[328894818,1717966251834,-3000.0,0.0002662,2]
[328894819,1717966251844,-3000.0,0.0002663,2]
[328894820,1717966251855,-3000.0,0.0002664,2]
[328894821,1717966251866,-926.602132,0.0002664,2]
[328894822,1717966251876,-926.602132,0.0002664,2]
[328894823,1717966251887,-151.0,0.0002664,2]
[328894824,1717966251899,-151.0,0.0002664,2]
[328894825,1717966251911,-151.0,0.0002664,2]
[328894826,1717966251923,-444.596682,0.0002664,2]
[328894827,1717966251935,-444.596682,0.0002664,2]
[328894828,1717966251946,-173.201211,0.0002664,2]
[328894829,1717966251957,-173.201211,0.0002664,2]
[328894830,1717966251967,-365.705848,0.0002664,2]
[328894831,1717966251979,-365.705848,0.0002664,2]
[328894832,1717966251990,-151.0,0.0002664,2]
[328894833,1717966252002,-156.95036896,0.00026645,2]
[328894834,1717966252012,-3000.0,0.0002665,2]
[328894835,1717966252022,-3000.0,0.0002666,2]
[328894836,1717966252032,-3000.0,0.0002667,2]
[328894837,1717966252042,-156.95036896,0.00026678,2]
[328894838,1717966252052,-3000.0,0.0002668,2]
[328894839,1717966252064,-3000.0,0.0002669,2]
[328894840,1717966252074,-517.0,0.00026696,2]
[328894841,1717966252086,-300.0,0.000267,2]
[328894842,1717966252096,-3000.0,0.000267,2]
[328894843,1717966252107,-478.07174624,0.000267,2]
[328894844,1717966252117,-3000.0,0.0002671,2]
[328894845,1717966252128,-3000.0,0.0002672,2]
[328894846,1717966252139,-3000.0,0.0002673,2]
[328894847,1717966252149,-3000.0,0.0002674,2]
[328894848,1717966252160,-3000.0,0.0002675,2]
[328894849,1717966252171,-3000.0,0.0002676,2]
[328894850,1717966252182,-3000.0,0.0002677,2]
[328894851,1717966252192,-3000.0,0.0002678,2]
[328894852,1717966252202,-3000.0,0.0002679,2]
[328894853,1717966252213,-258.666511,0.0002679,2]
[328894854,1717966252224,-151.0,0.0002679,2]
[328894855,1717966252234,-184.50751,0.0002679,2]
[328894856,1717966252244,-3869.440557,0.0002679,2]
[328894857,1717966252255,-3869.440557,0.0002679,2]
[328894858,1717966252266,-583.726456,0.0002679,2]
[328894859,1717966252277,-583.726456,0.0002679,2]
[328894860,1717966252288,-3000.0,0.000268,2]
[328894861,1717966252298,-478.07174624,0.00026808,2]
[328894862,1717966252309,-3000.0,0.0002681,2]
[328894863,1717966252320,-1283.339629,0.0002681,2]
[328894864,1717966252330,-1283.339629,0.0002681,2]
[328894865,1717966252341,-203.442403,0.0002681,2]
[328894866,1717966252352,-203.442403,0.0002681,2]
[328894867,1717966252363,-166.41560337,0.00026817,2]
[328894868,1717966252374,-3000.0,0.0002682,2]
[328894869,1717966252385,-498.347184,0.0002682,2]
[328894870,1717966252400,-498.347184,0.0002682,2]
[328894871,1717966252412,-151.0,0.0002682,2]
[328894872,1717966252424,-274.392147,0.0002682,2]
[328894873,1717966252435,-274.392147,0.0002682,2]
[328894874,1717966252446,-156.172827,0.0002682,2]
[328894875,1717966252457,-288.99297,0.0002682,2]
[328894876,1717966252472,-151.0,0.0002682,2]
[328894877,1717966252483,-585.09371703,0.0002682,2]
[328894878,1717966252513,-1777.51794397,0.0002682,2]
[328894879,1717966252523,-2362.611661,0.0002682,2]
[328894880,1717966252534,-151.0,0.0002683,2]
[328894881,1717966252547,-151.0,0.0002683,2]
[328894882,1717966252558,-151.0,0.0002683,2]
[328894883,1717966252570,-151.0,0.0002683,2]
[328894884,1717966252581,-151.0,0.0002683,2]
[328894885,1717966252592,-3000.0,0.0002683,2]
[328894886,1717966252603,-2728.766432,0.0002683,2]
[328894887,1717966252615,-2728.766432,0.0002683,2]
[328894888,1717966252626,-166.41560337,0.00026839,2]
[328894889,1717966252637,-3000.0,0.0002684,2]
[328894890,1717966252647,-1336.34,0.00026849,3]
[328894891,1717966252658,-750.0,0.00026849,2]
[328894892,1717966252668,-3673.395707,0.0002685,2]
[328894893,1717966252678,-421.5594823,0.00026853,2]
[328894894,1717966252689,-468.07639875,0.00026914,2]
[328894895,1717966280508,2400.35210555,9.999e-05,2]
[328895028,1717967290061,191.95581618,9.999e-05,2]
[328895068,1717967374777,155.42727592,9.999e-05,2]
[328895084,1717967433744,-945.74878612,0.00015,2]
[328895085,1717967433758,-1302.68548416,0.00015,2]
[328895086,1717967433770,-497.56756103,0.00015152,2]
[328895087,1717967433785,-30779.45852134,0.00015251,2]
[328895088,1717967433798,-1044.46840479,0.00015252,2]
[328895094,1717967433813,-7288.05626594,0.00015252,2]
[328895096,1717967433990,-166.666666,0.00016986,2]
[328895097,1717967434000,-497.56756101,0.00017057,2]
[328895098,1717967434011,-938.60358095,0.000187,2]
[328895099,1717967434021,-1136.99410213,0.000189,2]
[328895100,1717967434031,-497.56756101,0.00018963,2]
[328895101,1717967434041,-7267.44042319,0.00019,2]
[328895102,1717967434052,-195.6225,0.00019178,2]
[328895103,1717967434062,-166.93153526,0.000199,2]
[328895104,1717967434073,-356.5826556,0.000199,2]
[328895105,1717967434083,-1455.8319284,0.0002,3]
[328895106,1717967434093,-155.01395126,0.0002,2]
[328895107,1717967434103,-155.01395126,0.0002,2]
[328895108,1717967434114,-7909.47680484,0.0002,2]
[328895109,1717967434142,-316.23475701,0.0002,2]
[328895111,1717967439851,-1274.80743493,0.0002,2]
[328895112,1717967439861,-932.35426985,0.0002,2]
[328895113,1717967439872,-497.56756101,0.00020868,2]
[328895114,1717967439885,-471.08100537,0.00021,2]
[328895115,1717967439895,-393.98121283,0.00021,2]
[328895116,1717967439906,-113.20851601,0.00021,2]
[328895117,1717967440012,-1959.75325545,0.00021,2]
[328895118,1717967440024,-500.0,0.00021917,3]
[328895119,1717967440035,-500.0,0.00021917,3]
[328895120,1717967440045,-500.0,0.00021917,3]
[328895121,1717967440056,-500.0,0.00021917,3]
[328895122,1717967440067,-500.0,0.00021917,3]
[328895123,1717967440078,-503.33258132,0.00021917,3]
[328895124,1717967440091,-500.0,0.00021917,3]
[328895125,1717967440101,-500.0,0.00021917,3]
[328895126,1717967440111,-500.0,0.00021917,3]
[328895127,1717967440121,-561.18764391,0.00021917,3]
[328895128,1717967440131,-500.0,0.00021917,3]
[328895129,1717967440142,-642.97,0.00021917,3]
[328895130,1717967440153,-500.0,0.00021917,3]
[328895131,1717967440163,-500.0,0.00021917,3]
[328895132,1717967440174,-500.0,0.00021917,3]
[328895133,1717967440184,-500.0,0.00021917,3]
[328895134,1717967440195,-500.0,0.00021917,3]
[328895135,1717967440206,-552.18894626,0.00021917,3]
[328895136,1717967440216,-500.0,0.00021917,3]
[328895137,1717967440226,-500.0,0.00021917,3]
[328895138,1717967440237,-500.0,0.00021917,3]
[328895139,1717967440247,-500.0,0.00021917,3]
[328895140,1717967440257,-500.0,0.00021917,3]
[328895141,1717967440267,-500.0,0.00021917,3]
[328895142,1717967440277,-500.0,0.00021917,3]
[328895143,1717967440288,-166.666666,0.00021918,2]
[328895144,1717967440298,-151.0,0.00021979,5]
[328895145,1717967440309,-258.2929442,0.00021999,2]
[328895146,1717967440319,-536.83424351,0.00021999,2]
[328895147,1717967440329,-500.0,0.00021999,2]
[328895148,1717967440341,-288.53479316,0.00021999,2]
[328895149,1717967440351,-500.0,0.00021999,2]
[328895150,1717967440361,-500.0,0.00021999,2]
[328895151,1717967440371,-237.9140854,0.00021999,2]
[328895152,1717967440382,-500.0,0.00021999,2]